lending/lending_fUSD_20260310
["ID","MTS","AMOUNT","RATE_DAILY","PERIOD"]
[408112257,1773150631995,-300.0,0.00014963,2]
[408112258,1773150632004,-300.0,0.00014963,2]
[408112259,1773150632014,-731.16,0.00014965,2]
[408112260,1773150632023,-200.0,0.00014991,2]
[408112262,1773150632032,-889.15,0.00014998,2]
[408112264,1773150632042,-150.0,0.00014999,2]
[408112266,1773150632051,-296.0,0.00014999,2]
[408112268,1773150632060,-500.0,0.00015,30]
[408112269,1773150632069,-500.0,0.00015,30]
[408112273,1773150632280,-500.0,0.00015,30]
[408112274,1773150632353,-503.27679348,0.00015,30]
[408112275,1773150632362,-503.15394825,0.00015,30]
[408112276,1773150632371,-500.0,0.00015,30]
[408112277,1773150632380,-500.0,0.00015,30]
[408112278,1773150632390,-500.0,0.00015,30]
[408112279,1773150632399,-513.86304337,0.00015,30]
[408112280,1773150632409,-500.0,0.00015,30]
[408112281,1773150632419,-500.0,0.00015,30]
[408112282,1773150632427,-505.21434239,0.00015,30]
[408112283,1773150632437,-500.0,0.00015,30]
[408112284,1773150632446,-500.0,0.00015,30]
[408112285,1773150632456,-500.0,0.00015,30]
[408112286,1773150632465,-500.0,0.00015,30]
[408112287,1773150632474,-500.0,0.00015,30]
[408112288,1773150632483,-500.0,0.00015,30]
[408112289,1773150632492,-500.0,0.00015,30]
[408112290,1773150632501,-500.0,0.00015,30]
[408112291,1773150632511,-500.0,0.00015,30]
[408112292,1773150632520,-500.0,0.00015,30]
[408112293,1773150632530,-501.83729666,0.00015,30]
[408112294,1773150632539,-500.0,0.00015,30]
[408112295,1773150632547,-1613.0,0.00015102,2]
[408112296,1773150632556,-2027.56,0.00015113,2]
[408112297,1773150632566,-166.66,0.00015115,2]
[408112298,1773150632575,-1500.0,0.00015132,2]
[408112299,1773150632584,-2977.68,0.00015151,2]
[408112300,1773150632594,-500.0,0.00015162,2]
[408112301,1773150632603,-1200.0,0.00015162,2]
[408112302,1773150632613,-500.0,0.00015263,2]
[408112303,1773150632622,-166.66,0.00015409,2]
[408112304,1773150632631,-4476.99615743,0.00015409,2]
[408112305,1773150632641,-731.16,0.00015432,2]
[408112306,1773150632650,-612.70346664,0.00015436,2]
[408112307,1773150632659,-1862.89881802,0.00015658,2]
[408112308,1773150632669,-1495.25780596,0.00015658,2]
[408112309,1773150632679,-300.0,0.00015658,2]
[408112310,1773150632689,-250.0,0.00015658,2]
[408112311,1773150632698,-250.0,0.00015658,2]
[408112312,1773150632708,-2000.0,0.0001589,2]
[408112313,1773150632716,-731.16,0.000159,2]
[408112314,1773150632726,-240.70180885,0.000159,3]
[408112315,1773150632735,-389.62982423,0.000159,3]
[408112316,1773150632746,-439.96770465,0.000159,3]
[408112317,1773150632755,-422.00801487,0.000159,3]
[408112318,1773150632765,-1252.452,0.000159,2]
[408112319,1773150632774,-162.784,0.000159,2]
[408112320,1773150632784,-10210.05340961,0.0001599,2]
[408112321,1773150632793,-2218.5857,0.00015991,2]
[408112322,1773150632802,-735.9009,0.00015991,2]
[408112323,1773150632812,-2500.0,0.00015991,2]
[408112324,1773150632821,-151.0,0.00015997,2]
[408112325,1773150632830,-151.0,0.00015997,2]
[408112326,1773150632841,-151.0,0.00015997,2]
[408112327,1773150632850,-151.0,0.00015997,2]
[408112328,1773150632859,-151.0,0.00015997,2]
[408112329,1773150632869,-151.0,0.00015997,2]
[408112330,1773150632878,-151.0,0.00015997,2]
[408112331,1773150632888,-151.0,0.00015997,2]
[408112332,1773150632897,-151.0,0.00015997,2]
[408112333,1773150632907,-151.0,0.00015997,2]
[408112334,1773150632916,-151.0,0.00015997,2]
[408112335,1773150632925,-151.0,0.00015997,2]
[408112336,1773150632934,-151.0,0.00015997,2]
[408112337,1773150632943,-151.0,0.00015997,2]
[408112338,1773150632953,-151.0,0.00015997,2]
[408112339,1773150632962,-151.0,0.00015997,2]
[408112340,1773150632972,-151.0,0.00015997,2]
[408112341,1773150632981,-151.0,0.00015997,2]
[408112342,1773150632991,-151.0,0.00015997,2]
[408112343,1773150633001,-151.0,0.00015997,2]
[408112344,1773150633011,-151.0,0.00015997,2]
[408112345,1773150633020,-151.0,0.00015997,2]
[408112346,1773150633030,-151.0,0.00015997,2]
[408112347,1773150633039,-151.0,0.00015997,2]
[408112348,1773150633049,-151.0,0.00015997,2]
[408112349,1773150633059,-154.22309039,0.00015997,2]
[408112350,1773150633069,-971.5348519,0.00016006,2]
[408112351,1773150633079,-6513.7743463,0.00016006,2]
[408112352,1773150633088,-2121.5494,0.00016007,2]
[408112353,1773150633098,-1000.0,0.00016007,2]
[408112354,1773150633108,-226.26946486,0.00016007,2]
[408112355,1773150633117,-500.0,0.00016073,2]
[408112356,1773150633126,-627.75566029,0.00016073,2]
[408112357,1773150633137,-500.34430685,0.00016073,2]
[408112358,1773150633149,-500.37983606,0.00016073,2]
[408112359,1773150633158,-500.0,0.00016073,2]
[408112360,1773150633168,-500.0,0.00016073,2]
[408112361,1773150633178,-500.0,0.00016073,2]
[408112362,1773150633187,-500.31767514,0.00016073,2]
[408112363,1773150633197,-500.0,0.00016073,2]
[408112364,1773150633207,-500.0,0.00016073,2]
[408112365,1773150633216,-500.0,0.00016073,2]
[408112366,1773150633225,-500.0,0.00016073,2]
[408112367,1773150633235,-500.0,0.00016073,2]
[408112368,1773150633244,-163.96545935,0.00016073,2]
[408112369,1773150633254,-500.0,0.00016073,2]
[408112370,1773150633263,-500.0,0.00016073,2]
[408112371,1773150633272,-500.0,0.00016073,2]
[408112372,1773150633281,-500.0,0.00016073,2]
[408112373,1773150633291,-490.11,0.0001608,3]
[408112374,1773150633300,-656.24372858,0.00016081,2]
[408112375,1773150633310,-500.0,0.0001609,2]
[408112376,1773150633319,-500.0,0.0001609,2]
[408112377,1773150633328,-500.0,0.0001609,2]
[408112378,1773150633337,-462.18232633,0.0001609,2]
[408112379,1773150633346,-500.0,0.0001609,2]
[408112380,1773150633355,-500.0,0.0001609,2]
[408112381,1773150633365,-500.0,0.0001609,2]
[408112382,1773150633375,-500.0,0.0001609,2]
[408112383,1773150633385,-500.0,0.0001609,2]
[408112384,1773150633394,-500.0,0.0001609,2]
[408112385,1773150633403,-500.0,0.0001609,2]
[408112386,1773150633413,-500.0,0.0001609,2]
[408112387,1773150633422,-500.0,0.0001609,2]
[408112388,1773150633431,-500.0,0.0001609,2]
[408112389,1773150633440,-976404.42421963,0.00016091,2]
[408112390,1773150633953,-159830.6724164,0.00016091,2]
[408112391,1773150633964,-151859.83573952,0.00016091,2]
[408112392,1773150633975,-180326.16223374,0.00016091,2]
[408112393,1773150633986,-1254.41808677,0.00016091,2]
[408112394,1773150634015,-21018.0468151,0.00016091,2]
[408112405,1773150637718,-264.70446172,0.00016089,2]
[408112406,1773150637727,-1062.12537916,0.00016089,2]
[408112407,1773150637737,-1062.12537916,0.00016089,2]
[408112408,1773150637746,-1062.12537916,0.00016089,2]
[408112409,1773150637755,-1062.12537916,0.00016089,2]
[408112410,1773150637764,-1062.12537916,0.00016089,2]
[408112411,1773150637773,-1062.12537916,0.00016089,2]
[408112412,1773150637783,-1062.12537916,0.00016089,2]
[408112413,1773150637792,-1062.12537916,0.00016089,2]
[408112414,1773150637801,-1062.12537916,0.00016089,2]
[408112415,1773150637811,-1062.12537916,0.00016089,2]
[408112416,1773150637820,-1062.12537916,0.00016089,2]
[408112417,1773150637830,-1062.12537916,0.00016089,2]
[408112418,1773150637839,-1062.12537916,0.00016089,2]
[408112419,1773150637848,-1062.12537916,0.00016089,2]
[408112420,1773150637857,-1062.12537916,0.00016089,2]
[408112421,1773150637867,-1062.12537916,0.00016089,2]
[408112422,1773150637876,-1062.12537916,0.00016089,2]
[408112423,1773150637886,-1062.12537916,0.00016089,2]
[408112424,1773150637895,-1062.12537916,0.00016089,2]
[408112425,1773150637904,-1062.12537916,0.00016089,2]
[408112426,1773150637913,-1062.12537916,0.00016089,2]
[408112427,1773150637922,-1062.12537916,0.00016089,2]
[408112428,1773150637931,-1062.12537916,0.00016089,2]
[408112429,1773150637940,-1062.12537916,0.00016089,2]
[408112430,1773150637949,-1062.12537916,0.00016089,2]
[408112431,1773150637958,-1062.12537916,0.00016089,2]
[408112432,1773150637967,-1062.12537916,0.00016089,2]
[408112433,1773150637976,-1062.12537916,0.00016089,2]
[408112434,1773150637986,-1062.12537916,0.00016089,2]
[408112435,1773150637995,-1062.12537916,0.00016089,2]
[408112436,1773150638004,-1062.12537916,0.00016089,2]
[408112437,1773150638013,-1062.12537916,0.00016089,2]
[408112438,1773150638023,-1062.12537916,0.00016089,2]
[408112439,1773150638033,-1062.12537916,0.00016089,2]
[408112440,1773150638042,-1062.12537916,0.00016089,2]
[408112441,1773150638051,-1062.12537916,0.00016089,2]
[408112442,1773150638062,-1062.12537916,0.00016089,2]
[408112443,1773150638071,-1062.12537916,0.00016089,2]
[408112444,1773150638081,-1062.12537916,0.00016089,2]
[408112445,1773150638092,-1062.12537916,0.00016089,2]
[408112447,1773150638101,-1062.12537916,0.00016089,2]
[408112449,1773150638110,-1062.12537916,0.00016089,2]
[408112451,1773150638119,-1062.12537916,0.00016089,2]
[408112453,1773150638128,-1062.12537916,0.00016089,2]
[408112455,1773150638140,-1062.12537916,0.00016089,2]
[408112457,1773150638150,-1062.12537916,0.00016089,2]
[408112459,1773150638159,-1062.12537916,0.00016089,2]
[408112461,1773150638168,-1062.12537916,0.00016089,2]
[408112463,1773150638178,-1062.12537916,0.00016089,2]
[408112465,1773150638188,-17691.1519594,0.00016091,2]
[408112469,1773150638216,-359.6882625,0.00016091,2]
[408112472,1773150638231,-991255.60026694,0.00016091,2]
[408112473,1773150638240,-500.0,0.00016106,2]
[408112475,1773150638249,-500.0,0.00016107,2]
[408112476,1773150638258,-500.0,0.00016107,2]
[408112477,1773150638267,-500.0,0.00016107,2]
[408112478,1773150638278,-500.0,0.00016107,2]
[408112479,1773150638287,-500.0,0.00016107,2]
[408112480,1773150638296,-500.0,0.00016107,2]
[408112481,1773150638305,-500.0,0.00016107,2]
[408112482,1773150638314,-500.0,0.00016107,2]
[408112483,1773150638323,-500.0,0.00016107,2]
[408112484,1773150638332,-500.0,0.00016107,2]
[408112485,1773150638342,-500.0,0.00016107,2]
[408112486,1773150638351,-513.53496615,0.00016107,2]
[408112487,1773150638360,-500.0,0.00016107,2]
[408112488,1773150638369,-500.0,0.00016107,2]
[408112489,1773150638378,-500.0,0.00016107,2]
[408112490,1773150638387,-500.0,0.00016107,2]
[408112491,1773150638396,-500.0,0.00016107,2]
[408112492,1773150638404,-484.28586364,0.00016107,2]
[408112493,1773150638413,-500.0,0.00016107,2]
[408112494,1773150638423,-500.0,0.00016107,2]
[408112495,1773150638432,-204.51,0.00016107,2]
[408112496,1773150638442,-500.0,0.00016107,2]
[408112497,1773150638451,-500.0,0.00016107,2]
[408112498,1773150638459,-500.0,0.00016107,2]
[408112499,1773150638468,-500.0,0.00016107,2]
[408112500,1773150638478,-522.2,0.00016107,2]
[408112501,1773150638487,-500.0,0.00016191,2]
[408112502,1773150638498,-502.25687536,0.000162,2]
[408112503,1773150638507,-1680.0,0.00016256,2]
[408112504,1773150638516,-977.69911142,0.00016258,2]
[408112505,1773150638525,-1600.0,0.00016365,2]
[408112506,1773150638534,-731.16,0.00016367,2]
[408112507,1773150638543,-420.0,0.00016377,2]
[408112508,1773150638553,-204.51,0.00016381,2]
[408112509,1773150638562,-971.53485184,0.00016413,2]
[408112510,1773150638571,-10210.05340958,0.00016421,2]
[408112511,1773150638581,-411.32,0.00016438,2]
[408112512,1773150638590,-6513.77434625,0.00016558,2]
[408112513,1773150638600,-500.0,0.00016621,2]
[408112514,1773150638609,-1000.0,0.00016621,2]
[408112515,1773150638618,-1000.0,0.00016621,2]
[408112516,1773150638627,-1137.10281941,0.00016621,2]
[408112517,1773150638636,-500.0,0.00016621,2]
[408112518,1773150638648,-2000.0,0.00016626,2]
[408112519,1773150638658,-166.34,0.00016712,2]
[408112520,1773150638668,-971.53485184,0.00016821,2]
[408112521,1773150638678,-731.16,0.00016835,2]
[408112522,1773150638687,-10210.05340958,0.00016853,2]
[408112523,1773150638696,-163.02,0.000169,2]
[408112524,1773150638705,-6741.33,0.00016922,2]
[408112525,1773150638714,-150.99,0.00016922,2]
[408112526,1773150638724,-9999.99,0.00016922,2]
[408112527,1773150638734,-299.99,0.00016922,4]
[408112528,1773150638743,-3073.0,0.00017,2]
[408112529,1773150638752,-510.0,0.00017,2]
[408112530,1773150638761,-6513.77434625,0.00017111,2]
[408112531,1773150638770,-1500.0,0.00017168,2]
[408112532,1773150638779,-500.0,0.00017168,2]
[408112533,1773150638787,-1000.0,0.000172,2]
[408112534,1773150638796,-5533.0,0.000172,5]
[408112535,1773150638805,-971.53485184,0.00017228,2]
[408112536,1773150638815,-342.810124,0.00017229,7]
[408112537,1773150638823,-10210.05340958,0.00017284,2]
[408112538,1773150638832,-731.16,0.00017303,2]
[408112539,1773150638844,-162.0,0.000175,2]
[408112540,1773150638854,-971.53485184,0.00017636,2]
[408112541,1773150638865,-170.962384,0.00017638,2]
[408112542,1773150638874,-542.59073283,0.00017705,2]
[408112543,1773150638884,-10210.05340958,0.00017715,2]
[408112544,1773150638892,-2000.0,0.00017716,2]
[408112545,1773150638902,-500.0,0.00017727,2]
[408112546,1773150638911,-7896.12186139,0.00017752,3]
[408112547,1773150638920,-731.16,0.0001777,2]
[408112548,1773150638930,-411.32,0.0001788,2]
[408112549,1773150638939,-2351.0,0.00017881,2]
[408112550,1773150638948,-162.0,0.000179,2]
[408112551,1773150638957,-587.0,0.00017924,2]
[408112552,1773150638966,-3000.0,0.00018,2]
[408112553,1773150638976,-971.53485184,0.00018043,2]
[408112554,1773150638985,-2252.34350308,0.000181,2]
[408112555,1773150638994,-10210.05340958,0.00018147,2]
[408112556,1773150639003,-1600.0,0.00018183,2]
[408112557,1773150639012,-1100.0,0.000182,3]
[408112558,1773150639021,-2500.0,0.00018264,2]
[408112559,1773150639030,-315.79724953,0.00018347,2]
[408112560,1773150639040,-971.53485184,0.00018451,2]
[408112561,1773150639049,-2000.0,0.00018474,2]
[408112562,1773150639058,-510.0,0.000185,3]
[408112563,1773150639067,-10210.05340958,0.00018578,2]
[408112564,1773150639077,-1000.0,0.00018608,2]
[408112565,1773150639086,-199.07364582,0.00018608,2]
[408112566,1773150639095,-500.0,0.00018608,2]
[408112567,1773150639110,-486.82,0.00018794,2]
[408112568,1773150639119,-486.82,0.00018794,2]
[408112569,1773150639128,-497.00011978,0.00018794,2]
[408112570,1773150639139,-496.98,0.00018794,2]
[408112571,1773150639150,-486.82,0.00018794,2]
[408112572,1773150639159,-162.0,0.000188,2]
[408112573,1773150639168,-3000.0,0.00018812,2]
[408112574,1773150639177,-971.53485184,0.00018858,2]
[408112575,1773150639186,-4000.0,0.00018944,2]
[408112576,1773150639195,-2252.34350307,0.00018986,2]
[408112577,1773150639204,-3000.0,0.00019,2]
[408112578,1773150639215,-19467.88759408,0.00019,2]
[408112579,1773150639224,-259.90809845,0.00019,2]
[408112580,1773150639234,-885.81746984,0.00019,2]
[408112581,1773150639243,-10210.05340958,0.00019009,2]
[408112582,1773150639252,-1000.0,0.00019156,2]
[408112583,1773150639261,-787.0,0.00019178,2]
[408112584,1773150639270,-162.0,0.000192,3]
[408112585,1773150639279,-971.53485184,0.00019266,2]
[408112586,1773150639290,-8288.13174003,0.0001928,6]
[408112587,1773150639300,-500.0,0.00019292,2]
[408112588,1773150639310,-411.32,0.00019322,2]
[408112589,1773150639319,-3500.0,0.0001936,2]
[408112590,1773150639328,-4000.0,0.00019418,2]
[408112591,1773150639337,-10210.05340958,0.00019441,2]
[408112592,1773150639346,-1092.73862636,0.00019573,2]
[408112593,1773150639356,-991.32826393,0.00019573,2]
[408112594,1773150639366,-627.15883598,0.00019573,2]
[408112595,1773150639377,-162.0,0.000196,3]
[408112596,1773150639390,-823.0,0.00019618,2]
[408112597,1773150639409,-2279.0,0.0001967,2]
[408112598,1773150639418,-971.53485184,0.00019673,2]
[408112599,1773150639427,-1000.0,0.00019704,2]
[408112600,1773150639436,-656.24372858,0.00019716,2]
[408112601,1773150639447,-500.0,0.00019726,2]
[408112602,1773150639456,-500.0,0.00019726,2]
[408112603,1773150639465,-500.0,0.00019726,2]
[408112604,1773150639474,-500.0,0.00019726,2]
[408112605,1773150639483,-2822.3,0.00019726,2]
[408112606,1773150639492,-500.0,0.00019726,2]
[408112607,1773150639502,-2822.3,0.00019726,2]
[408112608,1773150639511,-500.0,0.00019726,2]
[408112609,1773150639520,-2822.3,0.00019726,2]
[408112610,1773150639530,-500.0,0.00019726,2]
[408112611,1773150639539,-2228.95,0.00019726,2]
[408112612,1773150639549,-2822.3,0.00019726,2]
[408112613,1773150639559,-500.0,0.00019726,2]
[408112614,1773150639567,-500.0,0.00019726,2]
[408112615,1773150639577,-2228.95,0.00019726,2]
[408112616,1773150639586,-2822.3,0.00019726,2]
[408112617,1773150639595,-2228.95,0.00019726,2]
[408112618,1773150639605,-2822.3,0.00019726,2]
[408112619,1773150639615,-234.60245542,0.00019726,2]
[408112620,1773150639624,-2822.3,0.00019726,2]
[408112621,1773150639634,-2822.3,0.00019726,2]
[408112622,1773150639644,-2228.95,0.00019726,2]
[408112623,1773150639653,-2822.3,0.00019726,2]
[408112624,1773150639663,-2228.95,0.00019726,2]
[408112625,1773150639671,-2822.3,0.00019726,2]
[408112626,1773150639681,-2228.95,0.00019726,2]
[408112627,1773150639691,-1187.08,0.00019726,2]
[408112628,1773150639700,-2822.3,0.00019726,2]
[408112629,1773150639710,-2228.95,0.00019726,2]
[408112630,1773150639719,-1187.08,0.00019726,2]
[408112631,1773150639729,-2228.95,0.00019726,2]
[408112632,1773150639739,-2513.16,0.00019726,2]
[408112633,1773150639748,-1187.08,0.00019726,2]
[408112634,1773150639758,-2228.95,0.00019726,2]
[408112635,1773150639767,-2513.16,0.00019726,2]
[408112636,1773150639775,-1187.08,0.00019726,2]
[408112637,1773150639784,-2228.95,0.00019726,2]
[408112638,1773150639793,-2513.16,0.00019726,2]
[408112639,1773150639803,-1187.08,0.00019726,2]
[408112640,1773150639811,-2228.95,0.00019726,2]
[408112641,1773150639820,-2513.16,0.00019726,2]
[408112642,1773150639830,-1187.08,0.00019726,2]
[408112643,1773150639839,-2513.16,0.00019726,2]
[408112645,1773150639847,-1187.08,0.00019726,2]
[408112646,1773150639856,-2513.16,0.00019726,2]
[408112647,1773150639865,-1187.08,0.00019726,2]
[408112648,1773150639875,-2513.16,0.00019726,2]
[408112649,1773150639884,-1187.08,0.00019726,2]
[408112650,1773150639893,-2513.16,0.00019726,2]
[408112651,1773150639903,-1187.08,0.00019726,2]
[408112652,1773150639912,-2513.16,0.00019726,2]
[408112653,1773150639921,-1187.08,0.00019726,2]
[408112654,1773150639930,-2513.16,0.00019726,2]
[408112655,1773150639940,-300.0,0.00019726,2]
[408112656,1773150639949,-300.0,0.00019726,2]
[408112657,1773150639958,-500.0,0.00019726,2]
[408112658,1773150639967,-300.0,0.00019726,2]
[408112659,1773150639976,-500.0,0.00019726,2]
[408112660,1773150639986,-300.0,0.00019726,2]
[408112661,1773150639995,-500.0,0.00019726,2]
[408112662,1773150640004,-300.0,0.00019726,2]
[408112663,1773150640013,-500.0,0.00019726,2]
[408112664,1773150640022,-500.0,0.00019726,2]
[408112665,1773150640031,-300.0,0.00019726,2]
[408112666,1773150640040,-500.0,0.00019726,2]
[408112667,1773150640049,-500.0,0.00019726,2]
[408112668,1773150640058,-300.0,0.00019726,2]
[408112669,1773150640067,-500.0,0.00019726,2]
[408112670,1773150640076,-300.0,0.00019726,2]
[408112671,1773150640085,-500.0,0.00019726,2]
[408112672,1773150640094,-300.0,0.00019726,2]
[408112673,1773150640103,-500.0,0.00019726,2]
[408112674,1773150640112,-300.0,0.00019726,2]
[408112675,1773150640121,-500.0,0.00019726,2]
[408112676,1773150640131,-500.0,0.00019726,2]
[408112677,1773150640142,-500.0,0.00019726,2]
[408112678,1773150640151,-500.0,0.00019726,2]
[408112679,1773150640160,-500.0,0.00019726,2]
[408112680,1773150640169,-254.94,0.00019726,2]
[408112681,1773150640179,-1076.66,0.00019726,2]
[408112682,1773150640188,-500.0,0.00019726,2]
[408112683,1773150640197,-1076.66,0.00019726,2]
[408112684,1773150640206,-500.0,0.00019726,2]
[408112685,1773150640216,-1076.66,0.00019726,2]
[408112686,1773150640226,-500.0,0.00019726,2]
[408112687,1773150640235,-1076.66,0.00019726,2]
[408112688,1773150640244,-500.0,0.00019726,2]
[408112689,1773150640253,-633.74,0.00019726,2]
[408112690,1773150640262,-500.0,0.00019726,2]
[408112691,1773150640271,-1076.66,0.00019726,2]
[408112692,1773150640280,-500.0,0.00019726,2]
[408112693,1773150640289,-633.74,0.00019726,2]
[408112694,1773150640299,-500.0,0.00019726,2]
[408112695,1773150640308,-1076.66,0.00019726,2]
[408112696,1773150640317,-633.74,0.00019726,2]
[408112697,1773150640326,-500.0,0.00019726,2]
[408112698,1773150640336,-500.0,0.00019726,2]
[408112699,1773150640346,-1076.66,0.00019726,2]
[408112700,1773150640356,-633.74,0.00019726,2]
[408112701,1773150640365,-521.44208806,0.00019726,2]
[408112702,1773150640374,-500.0,0.00019726,2]
[408112703,1773150640384,-1076.66,0.00019726,2]
[408112704,1773150640393,-633.74,0.00019726,2]
[408112705,1773150640403,-230.43609806,0.00019726,2]
[408112706,1773150640412,-633.74,0.00019726,2]
[408112707,1773150640421,-633.74,0.00019726,2]
[408112708,1773150640431,-500.0,0.00019726,2]
[408112709,1773150640440,-500.0,0.00019726,2]
[408112710,1773150640449,-633.74,0.00019726,2]
[408112711,1773150640460,-500.0,0.00019726,2]
[408112712,1773150640469,-633.74,0.00019726,2]
[408112713,1773150640478,-608.28373535,0.00019726,2]
[408112714,1773150640487,-633.74,0.00019726,2]
[408112715,1773150640496,-633.74,0.00019726,2]
[408112716,1773150640506,-799.26,0.00019726,2]
[408112717,1773150640515,-1076.66,0.00019726,2]
[408112718,1773150640525,-500.0,0.00019726,2]
[408112719,1773150640534,-799.26,0.00019726,2]
[408112720,1773150640543,-500.0,0.00019726,2]
[408112721,1773150640552,-1076.66,0.00019726,2]
[408112722,1773150640562,-799.26,0.00019726,2]
[408112723,1773150640571,-500.0,0.00019726,2]
[408112724,1773150640580,-799.26,0.00019726,2]
[408112725,1773150640589,-500.0,0.00019726,2]
[408112726,1773150640599,-799.26,0.00019726,2]
[408112727,1773150640608,-500.0,0.00019726,2]
[408112728,1773150640618,-799.26,0.00019726,2]
[408112729,1773150640627,-580.27031698,0.00019726,2]
[408112731,1773150640636,-799.26,0.00019726,2]
[408112732,1773150640646,-190.12199962,0.00019726,2]
[408112733,1773150640655,-799.26,0.00019726,2]
[408112734,1773150640664,-799.26,0.00019726,2]
[408112735,1773150640675,-799.26,0.00019726,2]
[408112736,1773150640684,-799.26,0.00019726,2]
[408112737,1773150640693,-4445.01,0.00019726,2]
[408112738,1773150640702,-4445.01,0.00019726,2]
[408112739,1773150640712,-500.0,0.00019726,2]
[408112740,1773150640721,-4445.01,0.00019726,2]
[408112741,1773150640730,-500.0,0.00019726,2]
[408112742,1773150640739,-500.0,0.00019726,2]
[408112743,1773150640748,-509.3179985,0.00019726,2]
[408112744,1773150640756,-4445.01,0.00019726,2]
[408112745,1773150640765,-500.0,0.00019726,2]
[408112746,1773150640775,-4445.01,0.00019726,2]
[408112747,1773150640784,-500.0,0.00019726,2]
[408112748,1773150640793,-4445.01,0.00019726,2]
[408112749,1773150640802,-500.0,0.00019726,2]
[408112750,1773150640811,-500.0,0.00019726,2]
[408112751,1773150640820,-4445.01,0.00019726,2]
[408112752,1773150640829,-500.0,0.00019726,2]
[408112753,1773150640838,-510.8,0.00019726,2]
[408112754,1773150640847,-4445.01,0.00019726,2]
[408112755,1773150640857,-500.0,0.00019726,2]
[408112756,1773150640866,-510.8,0.00019726,2]
[408112757,1773150640875,-4445.01,0.00019726,2]
[408112758,1773150640884,-4445.01,0.00019726,2]
[408112759,1773150640893,-510.8,0.00019726,2]
[408112760,1773150640902,-1017.51,0.00019726,2]
[408112761,1773150640911,-1161.32,0.00019726,2]
[408112762,1773150640920,-510.8,0.00019726,2]
[408112763,1773150640929,-4445.01,0.00019726,2]
[408112764,1773150640938,-1017.51,0.00019726,2]
[408112765,1773150640948,-1161.32,0.00019726,2]
[408112766,1773150640957,-510.8,0.00019726,2]
[408112767,1773150640966,-1017.51,0.00019726,2]
[408112768,1773150640975,-1161.32,0.00019726,2]
[408112769,1773150640985,-510.8,0.00019726,2]
[408112770,1773150640994,-1017.51,0.00019726,2]
[408112771,1773150641003,-1161.32,0.00019726,2]
[408112772,1773150641012,-510.8,0.00019726,2]
[408112773,1773150641021,-1017.51,0.00019726,2]
[408112774,1773150641030,-1161.32,0.00019726,2]
[408112775,1773150641040,-510.8,0.00019726,2]
[408112776,1773150641049,-1017.51,0.00019726,2]
[408112777,1773150641058,-1161.32,0.00019726,2]
[408112778,1773150641068,-510.8,0.00019726,2]
[408112779,1773150641078,-1017.51,0.00019726,2]
[408112780,1773150641087,-1161.32,0.00019726,2]
[408112781,1773150641096,-1017.51,0.00019726,2]
[408112782,1773150641106,-1161.32,0.00019726,2]
[408112783,1773150641115,-510.8,0.00019726,2]
[408112784,1773150641124,-1161.32,0.00019726,2]
[408112785,1773150641359,-510.8,0.00019726,2]
[408112786,1773150641368,-1161.32,0.00019726,2]
[408112787,1773150641378,-2859.12,0.00019726,2]
[408112788,1773150641388,-2859.12,0.00019726,2]
[408112789,1773150641397,-2859.12,0.00019726,2]
[408112790,1773150641406,-2859.12,0.00019726,2]
[408112791,1773150641415,-2859.12,0.00019726,2]